Workbook

Sheet Liquidación de sueldos
B6: Mes | C6: Enero
B7: Año | C7: 2015
J10: REMUNERATIVO | R10: Descuentos | AC10: Total Neto
A11: Legajo | B11: Nombre y Apellido | C11: Categoría o Posición | D11: Calificación Personal | E11: CUIL | F11: Fecha de Ingreso | G11: Jornada | H11: Básico Jornada Completa | I11: Antigüedad Años | J11: Básico según Jornada | K11: Adicionales | M11: Bruto | N11: Feriados en el mes | O11: Feriados no trabajado | P11: Feriados trabajado | Q11: Sub total
K12: Antigüedad | L12: Presentismo | N12: 1 | O12: 1 | P12: 0 | R12: Jubilación | S12: Obra Social | T12: Ley 19.032 | U12: SEC | V12: FAECYS | W12: SEC Afiliado | X12: Total | Y12: Asig. NR | Z12: Asig. NR | AA12: Presentismo | AB12: OSECAC
G13: Completa, Media o 2/3 | K13: 0.01 | R13: 0.11 | S13: 0.03 | T13: 0.03 | U13: 0.02 | V13: 0.005 | W13: 0.02 | X13: Descuentos | Y13: Cuota 1 | Z13: Cuota 2 | AB13: 70
A14: 10212 | B14: Saldivar, Juan | C14: Senior | D14: 5220 - VENDEDORES DE TIENDAS | E14: 27-111-111-0 | F14: 2010-03-21 | G14: COMPLETA | H14: 10000 | I14: 10 | J14: =IF($G14="Media",H14*1/2,IF($G14="2/3",H14*2/3,1*H14)) -> 10000 | K14: =+J14*$K$13*I14 -> 1000 | L14: =(+J14+K14)/12 -> 916.6666667 | M14: =+J14+K14+L14 -> 11916.66667 | N14: =$M14/25*$N$12 -> 476.6666667 | O14: =-$M14/30*$O$12 -> -397.2222222 | P14: =(M14/30*N12*P12+M14/25*P12) -> 0 | Q14: =SUM(M14:P14) -> 11996.11111 | R14: =$R$13*$Q14 -> 1319.572222 | S14: =IF($G14="Completa",Q14*$S$13,IF($G14="Media",Q14*$S$13*2,IF($G14="2/3",Q14*1.5*$S$13))) -> 359.8833333 | T14: =$T$13*$Q14 -> 359.8833333 | U14: =$U$13*Q14 -> 239.9222222 | V14: =$V$13*Q14 -> 59.98055556 | W14: =IF($G14="Completa",Q14*$W$13,IF($G14="Media",Q14*$W$13*2,IF($G14="2/3",Q14*$W$13*1.5,0))) -> 239.9222222 | X14: =SUM(R14:W14) -> 2579.163889 | AA14: =(+Y14+Z14)/12 -> 0 | AB14: =AB13 -> 70 | AC14: =+Q14-X14+Y14+Z14+AA14-AB14 -> 9346.947222
A15: 108210 | B15: López, José | G15: MEDIA | H15: 10000 | I15: 2 | J15: =IF($G15="Media",H15*1/2,IF($G15="2/3",H15*2/3,1*H15)) -> 5000 | K15: =+J15*$K$13*I15 -> 100 | L15: =(+J15+K15)/12 -> 425 | M15: =+J15+K15+L15 -> 5525 | N15: =$M15/25*$N$12 -> 221 | O15: =-$M15/30*$O$12 -> -184.1666667 | P15: =(M15/30*N13*P13+M15/25*P13) -> 0 | Q15: =SUM(M15:P15) -> 5561.833333 | R15: =$R$13*$Q15 -> 611.8016667 | S15: =IF($G15="Completa",Q15*$S$13,IF($G15="Media",Q15*$S$13*2,IF($G15="2/3",Q15*1.5*$S$13))) -> 333.71 | T15: =$T$13*$Q15 -> 166.855 | U15: =$U$13*Q15 -> 111.2366667 | V15: =$V$13*Q15 -> 27.80916667 | W15: =IF($G15="Completa",Q15*$W$13,IF($G15="Media",Q15*$W$13*2,IF($G15="2/3",Q15*$W$13*1.5,0))) -> 222.4733333 | X15: =SUM(R15:W15) -> 1473.885833 | AA15: =(+Y15+Z15)/12 -> 0 | AB15: =AB14 -> 70 | AC15: =+Q15-X15+Y15+Z15+AA15-AB15 -> 4017.9475
J16: 0 | K16: 0 | L16: 0 | M16: 0 | N16: 0 | O16: 0 | P16: 0 | Q16: 0 | R16: 0 | S16: FALSE | T16: 0 | U16: 0 | V16: 0 | W16: 0 | X16: 0 | AA16: 0 | AB16: 70 | AC16: -70
J17: 0 | K17: 0 | L17: 0 | M17: 0 | N17: 0 | O17: 0 | P17: 0 | Q17: 0 | R17: 0 | S17: FALSE | T17: 0 | U17: 0 | V17: 0 | W17: 0 | X17: 0 | AA17: 0 | AB17: 70 | AC17: -70
J18: 0 | K18: 0 | L18: 0 | M18: 0 | N18: 0 | O18: 0 | P18: 0 | Q18: 0 | R18: 0 | S18: FALSE | T18: 0 | U18: 0 | V18: 0 | W18: 0 | X18: 0 | AA18: 0 | AB18: 70 | AC18: -70
J19: 0 | K19: 0 | L19: 0 | M19: 0 | N19: 0 | O19: 0 | P19: 0 | Q19: 0 | R19: 0 | S19: FALSE | T19: 0 | U19: 0 | V19: 0 | W19: 0 | X19: 0 | AA19: 0 | AB19: 70 | AC19: -70
J20: 0 | K20: 0 | L20: 0 | M20: 0 | N20: 0 | O20: 0 | P20: 0 | Q20: 0 | R20: 0 | S20: FALSE | T20: 0 | U20: 0 | V20: 0 | W20: 0 | X20: 0 | AA20: 0 | AB20: 70 | AC20: -70
J21: 0 | K21: 0 | L21: 0 | M21: 0 | N21: 0 | O21: 0 | P21: 0 | Q21: 0 | R21: 0 | S21: FALSE | T21: 0 | U21: 0 | V21: 0 | W21: 0 | X21: 0 | AA21: 0 | AB21: 70 | AC21: -70
J22: 0 | K22: 0 | L22: 0 | M22: 0 | N22: 0 | O22: 0 | P22: 0 | Q22: 0 | R22: 0 | S22: FALSE | T22: 0 | U22: 0 | V22: 0 | W22: 0 | X22: 0 | AA22: 0 | AB22: 70 | AC22: -70
J23: 0 | K23: 0 | L23: 0 | M23: 0 | N23: 0 | O23: 0 | P23: 0 | Q23: 0 | R23: 0 | S23: FALSE | T23: 0 | U23: 0 | V23: 0 | W23: 0 | X23: 0 | AA23: 0 | AB23: 70 | AC23: -70
J24: 0 | K24: 0 | L24: 0 | M24: 0 | N24: 0 | O24: 0 | P24: 0 | Q24: 0 | R24: 0 | S24: FALSE | T24: 0 | U24: 0 | V24: 0 | W24: 0 | X24: 0 | AA24: 0 | AB24: 70 | AC24: -70
J25: 0 | K25: 0 | L25: 0 | M25: 0 | N25: 0 | O25: 0 | P25: 0 | Q25: 0 | R25: 0 | S25: FALSE | T25: 0 | U25: 0 | V25: 0 | W25: 0 | X25: 0 | AA25: 0 | AB25: 70 | AC25: -70
J26: 0 | K26: 0 | L26: 0 | M26: 0 | N26: 0 | O26: 0 | P26: 0 | Q26: 0 | R26: 0 | S26: FALSE | T26: 0 | U26: 0 | V26: 0 | W26: 0 | X26: 0 | AA26: 0 | AB26: 70 | AC26: -70
J27: 0 | K27: 0 | L27: 0 | M27: 0 | N27: 0 | O27: 0 | P27: 0 | Q27: 0 | R27: 0 | S27: FALSE | T27: 0 | U27: 0 | V27: 0 | W27: 0 | X27: 0 | AA27: 0 | AB27: 70 | AC27: -70
J28: 0 | K28: 0 | L28: 0 | M28: 0 | N28: 0 | O28: 0 | P28: 0 | Q28: 0 | R28: 0 | S28: FALSE | T28: 0 | U28: 0 | V28: 0 | W28: 0 | X28: 0 | AA28: 0 | AB28: 70 | AC28: -70
J29: 0 | K29: 0 | L29: 0 | M29: 0 | N29: 0 | O29: 0 | P29: 0 | Q29: 0 | R29: 0 | S29: FALSE | T29: 0 | U29: 0 | V29: 0 | W29: 0 | X29: 0 | AA29: 0 | AB29: 70 | AC29: -70
J30: 0 | K30: 0 | L30: 0 | M30: 0 | N30: 0 | O30: 0 | P30: 0 | Q30: 0 | R30: 0 | S30: FALSE | T30: 0 | U30: 0 | V30: 0 | W30: 0 | X30: 0 | AA30: 0 | AB30: 70 | AC30: -70
J31: 0 | K31: 0 | L31: 0 | M31: 0 | N31: 0 | O31: 0 | P31: 0 | Q31: 0 | R31: 0 | S31: FALSE | T31: 0 | U31: 0 | V31: 0 | W31: 0 | X31: 0 | AA31: 0 | AB31: 70 | AC31: -70
J32: 0 | K32: 0 | L32: 0 | M32: 0 | N32: 0 | O32: 0 | P32: 0 | Q32: 0 | R32: 0 | S32: FALSE | T32: 0 | U32: 0 | V32: 0 | W32: 0 | X32: 0 | AA32: 0 | AB32: 70 | AC32: -70
J33: 0 | K33: 0 | L33: 0 | M33: 0 | N33: 0 | O33: 0 | P33: 0 | Q33: 0 | R33: 0 | S33: FALSE | T33: 0 | U33: 0 | V33: 0 | W33: 0 | X33: 0 | AA33: 0 | AB33: 70 | AC33: -70
J34: 0 | K34: 0 | L34: 0 | M34: 0 | N34: 0 | O34: 0 | P34: 0 | Q34: 0 | R34: 0 | S34: FALSE | T34: 0 | U34: 0 | V34: 0 | W34: 0 | X34: 0 | AA34: 0 | AB34: 70 | AC34: -70
J35: 0 | K35: 0 | L35: 0 | M35: 0 | N35: 0 | O35: 0 | P35: 0 | Q35: 0 | R35: 0 | S35: FALSE | T35: 0 | U35: 0 | V35: 0 | W35: 0 | X35: 0 | AA35: 0 | AB35: 70 | AC35: -70
J36: 0 | K36: 0 | L36: 0 | M36: 0 | N36: 0 | O36: 0 | P36: 0 | Q36: 0 | R36: 0 | S36: FALSE | T36: 0 | U36: 0 | V36: 0 | W36: 0 | X36: 0 | AA36: 0 | AB36: 70 | AC36: -70
J37: 0 | K37: 0 | L37: 0 | M37: 0 | N37: 0 | O37: 0 | P37: 0 | Q37: 0 | R37: 0 | S37: FALSE | T37: 0 | U37: 0 | V37: 0 | W37: 0 | X37: 0 | AA37: 0 | AB37: 70 | AC37: -70
J38: 0 | K38: 0 | L38: 0 | M38: 0 | N38: 0 | O38: 0 | P38: 0 | Q38: 0 | R38: 0 | S38: FALSE | T38: 0 | U38: 0 | V38: 0 | W38: 0 | X38: 0 | AA38: 0 | AB38: 70 | AC38: -70
J39: 0 | K39: 0 | L39: 0 | M39: 0 | N39: 0 | O39: 0 | P39: 0 | Q39: 0 | R39: 0 | S39: FALSE | T39: 0 | U39: 0 | V39: 0 | W39: 0 | X39: 0 | AA39: 0 | AB39: 70 | AC39: -70
J40: 0 | K40: 0 | L40: 0 | M40: 0 | N40: 0 | O40: 0 | P40: 0 | Q40: 0 | R40: 0 | S40: FALSE | T40: 0 | U40: 0 | V40: 0 | W40: 0 | X40: 0 | AA40: 0 | AB40: 70 | AC40: -70
J41: 0 | K41: 0 | L41: 0 | M41: 0 | N41: 0 | O41: 0 | P41: 0 | Q41: 0 | R41: 0 | S41: FALSE | T41: 0 | U41: 0 | V41: 0 | W41: 0 | X41: 0 | AA41: 0 | AB41: 70 | AC41: -70
J42: 0 | K42: 0 | L42: 0 | M42: 0 | N42: 0 | O42: 0 | P42: 0 | Q42: 0 | R42: 0 | S42: FALSE | T42: 0 | U42: 0 | V42: 0 | W42: 0 | X42: 0 | AA42: 0 | AB42: 70 | AC42: -70
J43: 0 | K43: 0 | L43: 0 | M43: 0 | N43: 0 | O43: 0 | P43: 0 | Q43: 0 | R43: 0 | S43: FALSE | T43: 0 | U43: 0 | V43: 0 | W43: 0 | X43: 0 | AA43: 0 | AB43: 70 | AC43: -70
J44: 0 | K44: 0 | L44: 0 | M44: 0 | N44: 0 | O44: 0 | P44: 0 | Q44: 0 | R44: 0 | S44: FALSE | T44: 0 | U44: 0 | V44: 0 | W44: 0 | X44: 0 | AA44: 0 | AB44: 70 | AC44: -70
J45: 0 | K45: 0 | L45: 0 | M45: 0 | N45: 0 | O45: 0 | P45: 0 | Q45: 0 | R45: 0 | S45: FALSE | T45: 0 | U45: 0 | V45: 0 | W45: 0 | X45: 0 | AA45: 0 | AB45: 70 | AC45: -70
J46: 0 | K46: 0 | L46: 0 | M46: 0 | N46: 0 | O46: 0 | P46: 0 | Q46: 0 | R46: 0 | S46: FALSE | T46: 0 | U46: 0 | V46: 0 | W46: 0 | X46: 0 | AA46: 0 | AB46: 70 | AC46: -70
J47: 0 | K47: 0 | L47: 0 | M47: 0 | N47: 0 | O47: 0 | P47: 0 | Q47: 0 | R47: 0 | S47: FALSE | T47: 0 | U47: 0 | V47: 0 | W47: 0 | X47: 0 | AA47: 0 | AB47: 70 | AC47: -70
J48: 0 | K48: 0 | L48: 0 | M48: 0 | N48: 0 | O48: 0 | P48: 0 | Q48: 0 | R48: 0 | S48: FALSE | T48: 0 | U48: 0 | V48: 0 | W48: 0 | X48: 0 | AA48: 0 | AB48: 70 | AC48: -70
J49: 0 | K49: 0 | L49: 0 | M49: 0 | N49: 0 | O49: 0 | P49: 0 | Q49: 0 | R49: 0 | S49: FALSE | T49: 0 | U49: 0 | V49: 0 | W49: 0 | X49: 0 | AA49: 0 | AB49: 70 | AC49: -70
J50: 0 | K50: 0 | L50: 0 | M50: 0 | N50: 0 | O50: 0 | P50: 0 | Q50: 0 | R50: 0 | S50: FALSE | T50: 0 | U50: 0 | V50: 0 | W50: 0 | X50: 0 | AA50: 0 | AB50: 70 | AC50: -70
J51: 0 | K51: 0 | L51: 0 | M51: 0 | N51: 0 | O51: 0 | P51: 0 | Q51: 0 | R51: 0 | S51: FALSE | T51: 0 | U51: 0 | V51: 0 | W51: 0 | X51: 0 | AA51: 0 | AB51: 70 | AC51: -70
J52: 0 | K52: 0 | L52: 0 | M52: 0 | N52: 0 | O52: 0 | P52: 0 | Q52: 0 | R52: 0 | S52: FALSE | T52: 0 | U52: 0 | V52: 0 | W52: 0 | X52: 0 | AA52: 0 | AB52: 70 | AC52: -70
J53: 0 | K53: 0 | L53: 0 | M53: 0 | N53: 0 | O53: 0 | P53: 0 | Q53: 0 | R53: 0 | S53: FALSE | T53: 0 | U53: 0 | V53: 0 | W53: 0 | X53: 0 | AA53: 0 | AB53: 70 | AC53: -70
J54: 0 | K54: 0 | L54: 0 | M54: 0 | N54: 0 | O54: 0 | P54: 0 | Q54: 0 | R54: 0 | S54: FALSE | T54: 0 | U54: 0 | V54: 0 | W54: 0 | X54: 0 | AA54: 0 | AB54: 70 | AC54: -70
J55: 0 | K55: 0 | L55: 0 | M55: 0 | N55: 0 | O55: 0 | P55: 0 | Q55: 0 | R55: 0 | S55: FALSE | T55: 0 | U55: 0 | V55: 0 | W55: 0 | X55: 0 | AA55: 0 | AB55: 70 | AC55: -70
J56: 0 | K56: 0 | L56: 0 | M56: 0 | N56: 0 | O56: 0 | P56: 0 | Q56: 0 | R56: 0 | S56: FALSE | T56: 0 | U56: 0 | V56: 0 | W56: 0 | X56: 0 | AA56: 0 | AB56: 70 | AC56: -70
J57: 0 | K57: 0 | L57: 0 | M57: 0 | N57: 0 | O57: 0 | P57: 0 | Q57: 0 | R57: 0 | S57: FALSE | T57: 0 | U57: 0 | V57: 0 | W57: 0 | X57: 0 | AA57: 0 | AB57: 70 | AC57: -70
J58: 0 | K58: 0 | L58: 0 | M58: 0 | N58: 0 | O58: 0 | P58: 0 | Q58: 0 | R58: 0 | S58: FALSE | T58: 0 | U58: 0 | V58: 0 | W58: 0 | X58: 0 | AA58: 0 | AB58: 70 | AC58: -70
J59: 0 | K59: 0 | L59: 0 | M59: 0 | N59: 0 | O59: 0 | P59: 0 | Q59: 0 | R59: 0 | S59: FALSE | T59: 0 | U59: 0 | V59: 0 | W59: 0 | X59: 0 | AA59: 0 | AB59: 70 | AC59: -70
J60: 0 | K60: 0 | L60: 0 | M60: 0 | N60: 0 | O60: 0 | P60: 0 | Q60: 0 | R60: 0 | S60: FALSE | T60: 0 | U60: 0 | V60: 0 | W60: 0 | X60: 0 | AA60: 0 | AB60: 70 | AC60: -70
J61: 0 | K61: 0 | L61: 0 | M61: 0 | N61: 0 | O61: 0 | P61: 0 | Q61: 0 | R61: 0 | S61: FALSE | T61: 0 | U61: 0 | V61: 0 | W61: 0 | X61: 0 | AA61: 0 | AB61: 70 | AC61: -70
J62: 0 | K62: 0 | L62: 0 | M62: 0 | N62: 0 | O62: 0 | P62: 0 | Q62: 0 | R62: 0 | S62: FALSE | T62: 0 | U62: 0 | V62: 0 | W62: 0 | X62: 0 | AA62: 0 | AB62: 70 | AC62: -70
J63: 0 | K63: 0 | L63: 0 | M63: 0 | N63: 0 | O63: 0 | P63: 0 | Q63: 0 | R63: 0 | S63: FALSE | T63: 0 | U63: 0 | V63: 0 | W63: 0 | X63: 0 | AA63: 0 | AB63: 70 | AC63: -70
J64: 0 | K64: 0 | L64: 0 | M64: 0 | N64: 0 | O64: 0 | P64: 0 | Q64: 0 | R64: 0 | S64: FALSE | T64: 0 | U64: 0 | V64: 0 | W64: 0 | X64: 0 | AA64: 0 | AB64: 70 | AC64: -70
J65: 0 | K65: 0 | L65: 0 | M65: 0 | N65: 0 | O65: 0 | P65: 0 | Q65: 0 | R65: 0 | S65: FALSE | T65: 0 | U65: 0 | V65: 0 | W65: 0 | X65: 0 | AA65: 0 | AB65: 70 | AC65: -70
J66: 0 | K66: 0 | L66: 0 | M66: 0 | N66: 0 | O66: 0 | P66: 0 | Q66: 0 | R66: 0 | S66: FALSE | T66: 0 | U66: 0 | V66: 0 | W66: 0 | X66: 0 | AA66: 0 | AB66: 70 | AC66: -70
J67: 0 | K67: 0 | L67: 0 | M67: 0 | N67: 0 | O67: 0 | P67: 0 | Q67: 0 | R67: 0 | S67: FALSE | T67: 0 | U67: 0 | V67: 0 | W67: 0 | X67: 0 | AA67: 0 | AB67: 70 | AC67: -70
J68: 0 | K68: 0 | L68: 0 | M68: 0 | N68: 0 | O68: 0 | P68: 0 | Q68: 0 | R68: 0 | S68: FALSE | T68: 0 | U68: 0 | V68: 0 | W68: 0 | X68: 0 | AA68: 0 | AB68: 70 | AC68: -70
J69: 0 | K69: 0 | L69: 0 | M69: 0 | N69: 0 | O69: 0 | P69: 0 | Q69: 0 | R69: 0 | S69: FALSE | T69: 0 | U69: 0 | V69: 0 | W69: 0 | X69: 0 | AA69: 0 | AB69: 70 | AC69: -70
J70: 0 | K70: 0 | L70: 0 | M70: 0 | N70: 0 | O70: 0 | P70: 0 | Q70: 0 | R70: 0 | S70: FALSE | T70: 0 | U70: 0 | V70: 0 | W70: 0 | X70: 0 | AA70: 0 | AB70: 70 | AC70: -70
J71: 0 | K71: 0 | L71: 0 | M71: 0 | N71: 0 | O71: 0 | P71: 0 | Q71: 0 | R71: 0 | S71: FALSE | T71: 0 | U71: 0 | V71: 0 | W71: 0 | X71: 0 | AA71: 0 | AB71: 70 | AC71: -70
J72: 0 | K72: 0 | L72: 0 | M72: 0 | N72: 0 | O72: 0 | P72: 0 | Q72: 0 | R72: 0 | S72: FALSE | T72: 0 | U72: 0 | V72: 0 | W72: 0 | X72: 0 | AA72: 0 | AB72: 70 | AC72: -70
J73: 0 | K73: 0 | L73: 0 | M73: 0 | N73: 0 | O73: 0 | P73: 0 | Q73: 0 | R73: 0 | S73: FALSE | T73: 0 | U73: 0 | V73: 0 | W73: 0 | X73: 0 | AA73: 0 | AB73: 70 | AC73: -70
J74: 0 | K74: 0 | L74: 0 | M74: 0 | N74: 0 | O74: 0 | P74: 0 | Q74: 0 | R74: 0 | S74: FALSE | T74: 0 | U74: 0 | V74: 0 | W74: 0 | X74: 0 | AA74: 0 | AB74: 70 | AC74: -70
J75: 0 | K75: 0 | L75: 0 | M75: 0 | N75: 0 | O75: 0 | P75: 0 | Q75: 0 | R75: 0 | S75: FALSE | T75: 0 | U75: 0 | V75: 0 | W75: 0 | X75: 0 | AA75: 0 | AB75: 70 | AC75: -70
J76: 0 | K76: 0 | L76: 0 | M76: 0 | N76: 0 | O76: 0 | P76: 0 | Q76: 0 | R76: 0 | S76: FALSE | T76: 0 | U76: 0 | V76: 0 | W76: 0 | X76: 0 | AA76: 0 | AB76: 70 | AC76: -70
J77: 0 | K77: 0 | L77: 0 | M77: 0 | N77: 0 | O77: 0 | P77: 0 | Q77: 0 | R77: 0 | S77: FALSE | T77: 0 | U77: 0 | V77: 0 | W77: 0 | X77: 0 | AA77: 0 | AB77: 70 | AC77: -70
J78: 0 | K78: 0 | L78: 0 | M78: 0 | N78: 0 | O78: 0 | P78: 0 | Q78: 0 | R78: 0 | S78: FALSE | T78: 0 | U78: 0 | V78: 0 | W78: 0 | X78: 0 | AA78: 0 | AB78: 70 | AC78: -70
J79: =IF($G79="Media",H79*1/2,IF($G79="2/3",H79*2/3,1*H79)) -> 0 | K79: =+J79*$K$13*I79 -> 0 | L79: =(+J79+K79)/12 -> 0 | M79: =+J79+K79+L79 -> 0 | N79: =$M79/25*$N$12 -> 0 | O79: =-$M79/30*$O$12 -> 0 | P79: =(M79/30*N77*P77+M79/25*P77) -> 0 | Q79: =SUM(M79:P79) -> 0 | R79: =$R$13*$Q79 -> 0 | S79: =IF($G79="Completa",Q79*$S$13,IF($G79="Media",Q79*$S$13*2,IF($G79="2/3",Q79*1.5*$S$13))) -> FALSE | T79: =$T$13*$Q79 -> 0 | U79: =$U$13*Q79 -> 0 | V79: =$V$13*Q79 -> 0 | W79: =IF($G79="Completa",Q79*$W$13,IF($G79="Media",Q79*$W$13*2,IF($G79="2/3",Q79*$W$13*1.5,0))) -> 0 | X79: =SUM(R79:W79) -> 0 | AA79: =(+Y79+Z79)/12 -> 0 | AB79: =AB78 -> 70 | AC79: =+Q79-X79+Y79+Z79+AA79-AB79 -> -70
J80: 0 | K80: 0 | L80: 0 | M80: 0 | N80: 0 | O80: 0 | P80: 0 | Q80: 0 | R80: 0 | S80: FALSE | T80: 0 | U80: 0 | V80: 0 | W80: 0 | X80: 0 | AA80: 0 | AB80: 70 | AC80: -70
J81: 0 | K81: 0 | L81: 0 | M81: 0 | N81: 0 | O81: 0 | P81: 0 | Q81: 0 | R81: 0 | S81: FALSE | T81: 0 | U81: 0 | V81: 0 | W81: 0 | X81: 0 | AA81: 0 | AB81: 70 | AC81: -70
J82: 0 | K82: 0 | L82: 0 | M82: 0 | N82: 0 | O82: 0 | P82: 0 | Q82: 0 | R82: 0 | S82: FALSE | T82: 0 | U82: 0 | V82: 0 | W82: 0 | X82: 0 | AA82: 0 | AB82: 70 | AC82: -70
J83: 0 | K83: 0 | L83: 0 | M83: 0 | N83: 0 | O83: 0 | P83: 0 | Q83: 0 | R83: 0 | S83: FALSE | T83: 0 | U83: 0 | V83: 0 | W83: 0 | X83: 0 | AA83: 0 | AB83: 70 | AC83: -70
J84: 0 | K84: 0 | L84: 0 | M84: 0 | N84: 0 | O84: 0 | P84: 0 | Q84: 0 | R84: 0 | S84: FALSE | T84: 0 | U84: 0 | V84: 0 | W84: 0 | X84: 0 | AA84: 0 | AB84: 70 | AC84: -70
J85: 0 | K85: 0 | L85: 0 | M85: 0 | N85: 0 | O85: 0 | P85: 0 | Q85: 0 | R85: 0 | S85: FALSE | T85: 0 | U85: 0 | V85: 0 | W85: 0 | X85: 0 | AA85: 0 | AB85: 70 | AC85: -70
J86: 0 | K86: 0 | L86: 0 | M86: 0 | N86: 0 | O86: 0 | P86: 0 | Q86: 0 | R86: 0 | S86: FALSE | T86: 0 | U86: 0 | V86: 0 | W86: 0 | X86: 0 | AA86: 0 | AB86: 70 | AC86: -70
A87: X | B87: X | C87: X | D87: X | E87: X | F87: X | G87: X | H87: X | I87: X | J87: X | K87: X | L87: X | M87: X | Q87: X | R87: X | S87: X | T87: X | U87: X | V87: X | W87: X | X87: X | Y87: X | Z87: X | AA87: X | AB87: X | AC87: X

Sheet Recibo de sueldo
C4: Elegir empleado para liquidar | D4: Saldivar, Juan
C9: Razon Social : | D9: El Super Oboso S.A
C10: C.U.I.T: | D10: 30-XXX-XXX
C11: Domicilio: | D11: Pampa y La Vía
C13: Apellido y nombre | D13: C.U.I.L | F13: Legajo Nº
C14: =D4 -> Saldivar, Juan | D14: =IFERROR(VLOOKUP(C14,'Liquidación de sueldos'!$B$11:$E$102,4,0),"") -> 27-111-111-0 | F14: =IFERROR(INDEX('Liquidación de sueldos'!$A$14:$B$102,MATCH('Recibo de sueldo'!D4,'Liquidación de sueldos'!B14:B102,0),1),"") -> 10212
C15: Fecha ingreso | D15: Categoria | E15: Calificacion Profesional | G15: Contratación
C16: =IFERROR(VLOOKUP(D4,'Liquidación de sueldos'!B14:F102,5,0),"") -> 2010-03-21 | D16: =IFERROR(VLOOKUP(D4,'Liquidación de sueldos'!B11:$D$102,2,0),"") -> Senior | E16: =IFERROR(VLOOKUP(D4,'Liquidación de sueldos'!B11:$D$102,3,0),"") -> 5220 - VENDEDORES DE TIENDAS | G16: =IFERROR(VLOOKUP(D4,'Liquidación de sueldos'!B11:$G$102,6,0),"") -> COMPLETA
C17: Remuneracion asignada | D17: Periodo de pago | F17: Recibo Nº
C18: =TEXT(IFERROR(VLOOKUP(D4,'Liquidación de sueldos'!B11:$H$102,7,0),""),"$#.##") -> $10.000 | D18: =CONCATENATE('Liquidación de sueldos'!C6," ",'Liquidación de sueldos'!C7) -> Enero 2015 | F18: 1
C20: CONCEPTOS | D20: V.U | E20: UNIDADES | F20: REMUNERATIVA | G20: NO REMUNERATIVO | H20: DESCUENTOS
C21: Sueldo Básico | E21: 30 | F21: =IFERROR(VLOOKUP(D4,'Liquidación de sueldos'!B14:$J$102,9,0),"") -> 10000
C22: Antigüedad | E22: =IFERROR(VLOOKUP($D$4,'Liquidación de sueldos'!B14:$I$102,8,0),"") -> 10 | F22: =IFERROR(VLOOKUP($D$4,'Liquidación de sueldos'!B14:$K$102,10,0),"") -> 1000
C23: Presentismo | F23: =IFERROR(VLOOKUP(D4,'Liquidación de sueldos'!B14:$L$102,11,0),"") -> 916.6666667
C24: ='Liquidación de sueldos'!N11 -> Feriados en el mes | E24: =IFERROR('Liquidación de sueldos'!N12:N13,"") -> 1 | F24: =IFERROR(VLOOKUP(D4,'Liquidación de sueldos'!B14:$N$102,13,0),"") -> 476.6666667
C25: ='Liquidación de sueldos'!O11 -> Feriados no trabajado | E25: ='Liquidación de sueldos'!O12:O13 -> 1 | F25: =IFERROR(VLOOKUP(D4,'Liquidación de sueldos'!B14:$O$102,14,0),"") -> -397.2222222
C26: ='Liquidación de sueldos'!P11 -> Feriados trabajado | E26: ='Liquidación de sueldos'!P12:P13 -> 0 | F26: =IFERROR(VLOOKUP(D4,'Liquidación de sueldos'!B14:$P$102,15,0),"") -> 0
C27: ='Liquidación de sueldos'!R12 -> Jubilación | D27: ='Liquidación de sueldos'!R13 -> 0.11 | H27: =IFERROR(VLOOKUP(D4,'Liquidación de sueldos'!B14:$R$102,17,0),"") -> 1319.572222
C28: ='Liquidación de sueldos'!S12 -> Obra Social | D28: ='Liquidación de sueldos'!S13 -> 0.03 | H28: =IFERROR(VLOOKUP(D4,'Liquidación de sueldos'!B14:$S$102,18,0),"") -> 359.8833333
C29: ='Liquidación de sueldos'!T12 -> Ley 19.032 | D29: ='Liquidación de sueldos'!T13 -> 0.03 | H29: =IFERROR(VLOOKUP(D4,'Liquidación de sueldos'!B14:$T$102,19,0),"") -> 359.8833333
C30: ='Liquidación de sueldos'!U12 -> SEC | D30: ='Liquidación de sueldos'!U13 -> 0.02 | H30: =IFERROR(VLOOKUP(D4,'Liquidación de sueldos'!B14:$U$102,20,0),"") -> 239.9222222
C31: ='Liquidación de sueldos'!V12 -> FAECYS | D31: ='Liquidación de sueldos'!V13 -> 0.005 | H31: =IFERROR(VLOOKUP(D4,'Liquidación de sueldos'!B14:$V$102,21,0),"") -> 59.98055556
C32: ='Liquidación de sueldos'!W12 -> SEC Afiliado | D32: ='Liquidación de sueldos'!W13 -> 0.02 | H32: =IFERROR(VLOOKUP(D4,'Liquidación de sueldos'!B14:$W$102,22,0),"") -> 239.9222222
C33: OSECAC | H33: =IFERROR(VLOOKUP(D4,'Liquidación de sueldos'!B14:$AB$102,27,0),"") -> 70
C36: Totales | F36: =SUM(F21:F35) -> 11996.11111 | G36: =SUM(G21:G35) -> 0 | H36: =SUM(H21:H35) -> 2649.163889
G38: Neto | H38: =F36+G36-H36 -> 9346.947222
C40: Lugar y fecha de pago | F40: Forma de pago
C41: La paz, 01 de mayo | F41: Transferencia Bancaria
C43: Son pesos: | D43: =+Num_texto(H38) -> NUEVE MIL TRESCIENTOS CUARENTA Y SEIS PESOS CON 95 CTVOS
B44: Recibí el importe de esta liquidacion en pago de mi remuneracion correspondiente al periodo indicado y duplicado de la misma confome a la ley vigente
F46: Firma
C52: Razon Social : | D52: =D9 -> El Super Oboso S.A
C53: C.U.I.T: | D53: =D10 -> 30-XXX-XXX
C54: Domicilio: | D54: =+D11 -> Pampa y La Vía
C56: Apellido y nombre | D56: C.U.I.L | F56: Legajo Nº
C57: =+C14 -> Saldivar, Juan | D57: =+D14 -> 27-111-111-0 | F57: =+F14 -> 10212
C58: Fecha ingreso | D58: Categoria | E58: Calificacion Profesional | G58: Contratación
C59: =+C16 -> 2010-03-21 | D59: =D16 -> Senior | E59: =+E16 -> 5220 - VENDEDORES DE TIENDAS | G59: =+G16 -> COMPLETA
C60: Remuneracion asignada | D60: Periodo de pago | F60: Recibo Nº
C61: =+C18 -> $10.000 | D61: =+D18 -> Enero 2015 | F61: =F18 -> 1
C63: CONCEPTOS | D63: V.U | E63: UNIDADES | F63: REMUNERATIVA | G63: NO REMUNERATIVO | H63: DESCUENTOS
C64: =+C21 -> Sueldo Básico | D64: =IF(+D21="","",D21) ->  | E64: =IF(E21="","",E21) -> 30 | F64: 10000
C65: Antigüedad | E65: 10 | F65: 1000
C66: Presentismo | F66: 916.6666667
C67: Feriados en el mes | E67: 1 | F67: 476.6666667
C68: Feriados no trabajado | E68: 1 | F68: -397.2222222
C69: Feriados trabajado | E69: 0 | F69: 0
C70: Jubilación | D70: 0.11 | H70: =IF(H27="","",H27) -> 1319.572222
C71: Obra Social | D71: 0.03 | H71: 359.8833333
C72: Ley 19.032 | D72: 0.03 | H72: 359.8833333
C73: SEC | D73: 0.02 | H73: 239.9222222
C74: FAECYS | D74: 0.005 | H74: 59.98055556
C75: SEC Afiliado | D75: 0.02 | H75: 239.9222222
C76: OSECAC | H76: 70
C79: Totales | F79: =SUM(F64:F78) -> 11996.11111 | G79: =SUM(G64:G78) -> 0 | H79: =SUM(H64:H78) -> 2649.163889
G81: Neto | H81: =F79+G79-H79 -> 9346.947222
C83: Lugar y fecha de pago | F83: Forma de pago
C84: =C41 -> La paz, 01 de mayo | F84: =F41 -> Transferencia Bancaria
C86: Son pesos: | D86: =+Num_texto(H81) -> NUEVE MIL TRESCIENTOS CUARENTA Y SEIS PESOS CON 95 CTVOS
B87: Recibí el importe de esta liquidacion en pago de mi remuneracion correspondiente al periodo indicado y duplicado de la misma confome a la ley vigente
F89: Firma

Sheet Hoja2 (hidden)
A5: Enero
A6: Febrero
A7: Marzo
A8: Abril
A9: Mayo
A10: Junio
A11: Julio
A12: Agosto
A13: Septiembre
A14: Octubre
A15: Noviembre
A16: Diciembre
